bitfinex/quotes_BTCUSD_20241203
["timestamp","ask_amount","ask_price","bid_price","bid_amount"]
[1733252472998,0.209511,95460.0,95459.0,0.223]
[1733252473219,0.209511,95460.0,95459.0,0.22317591]
[1733252473884,0.209504,95464.0,95463.0,0.2]
[1733252474093,0.428008,95464.0,95463.0,0.2]
[1733252474324,0.218504,95464.0,95463.0,0.2]
[1733252474966,0.209503,95464.0,95463.0,0.2]
[1733252475632,0.212503,95464.0,95463.0,0.2]
[1733252476078,0.003,95464.0,95463.0,0.423]
[1733252476505,0.209479,95475.0,95464.0,0.232503]
[1733252476718,0.418946,95478.0,95468.0,0.023]
[1733252477014,0.209441,95493.0,95473.0,0.2]
[1733252477015,0.15,95489.0,95473.0,0.2]
[1733252477239,0.209474,95477.0,95473.0,0.2]
[1733252477460,0.209487,95472.0,95471.0,0.2]
[1733252478104,0.209487,95472.0,95471.0,0.223]
[1733252478985,0.209487,95472.0,95471.0,0.2]
[1733252479210,0.209487,95472.0,95471.0,0.223]
[1733252479444,0.209507,95462.0,95459.0,0.00017591]
[1733252479661,0.209507,95462.0,95461.0,0.2]
[1733252480783,0.209495,95468.0,95461.0,0.2]
[1733252481001,0.003,95462.0,95461.0,0.2]
[1733252481438,0.006,95462.0,95461.0,0.2]
[1733252482593,0.209503,95464.0,95461.0,0.2]
[1733252482815,0.209505,95464.0,95461.0,0.2]
[1733252483250,0.209505,95464.0,95463.0,0.2]
[1733252484106,0.214505,95464.0,95463.0,0.2]
[1733252484360,0.215505,95464.0,95463.0,0.2]
[1733252484791,0.220505,95464.0,95463.0,0.201]
[1733252485007,0.219505,95464.0,95463.0,0.201]
[1733252485232,0.0095,95464.0,95463.0,0.224]
[1733252485706,0.0095,95464.0,95463.0,0.424]
[1733252485930,0.0095,95464.0,95463.0,0.4736]
[1733252486138,0.0095,95464.0,95463.0,0.57831259]
[1733252486364,0.0095,95464.0,95463.0,0.65611259]
[1733252486592,0.209472,95479.0,95463.0,0.65511259]
[1733252486817,0.209478,95476.0,95474.0,0.023]
[1733252487569,0.13901691,95480.0,95463.0,0.1284]
[1733252487570,0.209496,95467.0,95463.0,0.001]
[1733252487775,0.209496,95467.0,95464.0,0.2]
[1733252487991,0.209498,95466.0,95464.0,0.2]
[1733252490831,0.209498,95466.0,95465.0,0.023]
[1733252491042,0.210498,95466.0,95465.0,0.023]
[1733252491378,0.215498,95466.0,95465.0,0.023]
[1733252491580,0.006,95466.0,95465.0,0.023]
[1733252491788,0.20949,95470.0,95465.0,0.023]
[1733252492004,0.005,95466.0,95465.0,0.024]
[1733252492274,0.006,95466.0,95465.0,0.024]
[1733252492686,0.006,95466.0,95465.0,0.023]
[1733252492891,0.001,95466.0,95465.0,0.023]
[1733252493094,0.001,95466.0,95465.0,0.024]
[1733252493313,0.209498,95467.0,95465.0,0.024]
[1733252494251,0.209498,95467.0,95465.0,0.023]
[1733252494433,0.001,95466.0,95465.0,0.024]
[1733252494654,0.006,95466.0,95465.0,0.024]
[1733252494867,0.005,95466.0,95465.0,0.023]
[1733252495084,0.005,95466.0,95465.0,0.024]
[1733252495527,0.008,95467.0,95466.0,0.423]
[1733252496365,0.006,95467.0,95466.0,0.423]
[1733252497349,0.008,95467.0,95466.0,0.423]
[1733252497557,0.002,95467.0,95466.0,0.423]
[1733252497761,0.002,95467.0,95466.0,0.424]
[1733252497963,0.008,95467.0,95466.0,0.424]
[1733252498168,0.008,95467.0,95466.0,0.52871259]
[1733252499013,0.002,95467.0,95466.0,0.65421259]
[1733252499658,0.0017278,95489.0,95488.0,0.223]
[1733252499916,0.209464,95482.0,95479.0,0.2]
[1733252500137,0.209464,95482.0,95481.0,0.223]
[1733252500763,0.21005015,95482.0,95481.0,0.223]
[1733252500969,0.21005015,95482.0,95481.0,0.2]
[1733252501185,0.21005015,95482.0,95481.0,0.223]
[1733252501600,0.21205015,95482.0,95481.0,0.223]
[1733252502225,0.00858615,95482.0,95481.0,0.424]
[1733252504734,0.0080624,95482.0,95481.0,0.224]
[1733252504951,0.0080624,95482.0,95481.0,0.424]
[1733252507919,0.0080624,95482.0,95481.0,0.5003]
[1733252508764,0.0060624,95482.0,95481.0,0.5003]
[1733252508991,0.0060624,95482.0,95481.0,0.60401259]
[1733252509214,0.0060624,95482.0,95481.0,0.65391259]
[1733252509215,0.0017902,95482.0,95481.0,0.65391259]
[1733252509429,0.0027902,95482.0,95481.0,0.65391259]
[1733252510323,0.0027902,95482.0,95481.0,0.63902185]
[1733252515308,0.0027902,95482.0,95481.0,0.63802185]
[1733252515720,0.0017902,95482.0,95481.0,0.63902185]
[1733252516154,0.0017902,95482.0,95481.0,0.63802185]
[1733252516565,0.0017902,95482.0,95481.0,0.64102185]
[1733252517633,0.0017902,95482.0,95481.0,0.64402185]
[1733252518269,0.0017902,95482.0,95481.0,1.19402185]
[1733252518933,0.0017902,95482.0,95481.0,1.19102185]
[1733252519360,0.0017902,95482.0,95481.0,1.19402185]
[1733252519571,0.0017902,95482.0,95481.0,0.59402185]
[1733252519775,0.0017902,95482.0,95481.0,0.64102185]
[1733252519993,0.0017902,95482.0,95481.0,0.63802185]
[1733252520218,0.0027902,95482.0,95481.0,0.64302185]
[1733252520444,0.0037902,95482.0,95481.0,0.65002185]
[1733252520671,0.0027902,95482.0,95481.0,0.64302185]
[1733252520869,0.0027902,95482.0,95481.0,0.65202185]
[1733252521305,0.0017902,95482.0,95481.0,0.64702185]
[1733252521508,0.0017902,95482.0,95481.0,0.64788555]
[1733252521717,0.0027902,95482.0,95481.0,0.65488555]
[1733252523433,0.0027902,95482.0,95481.0,0.52968555]
[1733252524110,0.0027902,95482.0,95481.0,0.50668555]
[1733252524781,0.2122532,95482.0,95481.0,0.50668555]
[1733252525001,0.2112532,95482.0,95481.0,0.49968555]
[1733252525246,0.2102532,95482.0,95481.0,0.29068555]
[1733252525482,0.2102532,95482.0,95481.0,0.39497296]
[1733252525906,0.2102532,95482.0,95481.0,0.39097296]
[1733252526123,0.2102532,95482.0,95481.0,0.39497296]
[1733252531488,0.0007902,95482.0,95481.0,0.39497296]
[1733252534630,0.0498902,95482.0,95481.0,0.0098637]
[1733252534837,0.38040279,95482.0,95481.0,0.0098637]
[1733252535251,0.2756902,95482.0,95481.0,0.0058637]
[1733252535665,0.2756902,95482.0,95481.0,0.0068637]
[1733252536111,0.2756902,95482.0,95481.0,0.0058637]
[1733252536316,0.2756902,95482.0,95481.0,0.0008637]
[1733252536730,0.2766902,95482.0,95481.0,0.0008637]
[1733252537410,0.2886902,95482.0,95481.0,0.0018637]
[1733252537834,0.2856902,95482.0,95481.0,0.0018637]
[1733252538505,0.2906902,95482.0,95481.0,0.0018637]
[1733252542546,0.0915902,95482.0,95481.0,0.0018637]
[1733252542781,0.0157902,95482.0,95481.0,0.0018637]
[1733252543205,0.0157902,95482.0,95481.0,0.0008637]
[1733252543206,0.0057902,95482.0,95481.0,0.0008637]
[1733252543650,0.0097902,95482.0,95481.0,0.0008637]
[1733252543869,0.0047902,95482.0,95481.0,0.0008637]
[1733252544296,0.0057902,95482.0,95481.0,0.0008637]
[1733252545888,0.26050279,95482.0,95481.0,0.0008637]
[1733252546101,0.33900279,95482.0,95481.0,0.0008637]
[1733252547889,0.38850279,95482.0,95481.0,0.0008637]
[1733252548111,0.38850279,95482.0,95461.0,0.0008639]
[1733252548112,0.4365,95465.0,95461.0,0.0008639]
[1733252549023,0.3595,95465.0,95461.0,0.0008639]
[1733252549268,0.15,95469.0,95465.0,0.2]
[1733252549481,0.15,95467.0,95465.0,0.2]
[1733252549915,0.359498,95466.0,95465.0,0.2]
[1733252550132,0.15,95466.0,95465.0,0.2]
[1733252550366,0.15,95471.0,95470.0,0.2]
[1733252550588,0.359489,95470.0,95469.0,0.2]
[1733252551988,0.360489,95470.0,95469.0,0.2]
[1733252553377,0.365489,95470.0,95469.0,0.2]
[1733252554347,0.029,95470.0,95469.0,0.2]
[1733252554821,0.179,95470.0,95469.0,0.2]
[1733252555043,0.178,95470.0,95469.0,0.2]
[1733252555266,0.178,95470.0,95469.0,0.38510926]
[1733252555267,0.005,95470.0,95469.0,0.38510926]
[1733252556138,0.15,95474.0,95473.0,0.2]
[1733252557256,0.001,95474.0,95473.0,0.38510926]
[1733252557491,0.005,95474.0,95473.0,0.38510926]
[1733252557949,0.173,95477.0,95476.0,0.2]
[1733252559732,0.178,95477.0,95476.0,0.2]
[1733252559936,0.179,95477.0,95476.0,0.2]
[1733252560581,0.20560566,95477.0,95476.0,0.2]
[1733252563183,0.15,95475.0,95474.0,0.2]
[1733252564508,0.155,95475.0,95474.0,0.2]
[1733252571437,0.155,95475.0,95474.0,0.2008637]
[1733252571887,0.155,95475.0,95474.0,0.38597296]
[1733252575395,0.178,95475.0,95474.0,0.0008637]
[1733252575634,0.301,95475.0,95474.0,0.0008637]
[1733252575864,0.47191027,95475.0,95474.0,0.0008637]
[1733252576105,0.43637157,95475.0,95474.0,0.0008637]
[1733252576837,0.43237157,95475.0,95474.0,0.0008637]
[1733252577061,0.173,95473.0,95464.0,0.0008639]
[1733252577299,0.0458,95466.0,95464.0,0.0008639]
[1733252577517,0.10471259,95465.0,95464.0,0.0008639]
[1733252577743,0.359549,95443.0,95442.0,0.2]
[1733252579092,0.359549,95443.0,95442.0,0.20058615]
[1733252579317,0.359549,95443.0,95442.0,0.20158615]
[1733252580459,0.382549,95443.0,95442.0,0.00158615]
[1733252581311,0.382549,95443.0,95442.0,0.00058615]
[1733252581747,0.59844311,95443.0,95442.0,0.00058615]
[1733252582201,0.49373052,95443.0,95442.0,0.00058615]
[1733252582430,0.49273052,95443.0,95442.0,0.00058615]
[1733252582666,0.50073052,95443.0,95442.0,0.00058615]
[1733252582893,0.49673052,95443.0,95442.0,0.00058615]
[1733252583103,0.41393052,95443.0,95442.0,0.00144985]
[1733252583325,0.42193052,95443.0,95442.0,0.00144985]
[1733252584189,0.41793052,95443.0,95442.0,0.00144985]
[1733252584403,0.42093052,95443.0,95442.0,0.00144985]
[1733252585298,0.41293052,95443.0,95442.0,0.00144985]
[1733252585753,0.41893052,95443.0,95442.0,0.00144985]
[1733252587358,0.39593052,95443.0,95442.0,0.00144985]
[1733252592175,0.52364311,95443.0,95442.0,0.00144985]
[1733252593474,0.60484311,95443.0,95442.0,0.00144985]
[1733252595475,0.62814311,95443.0,95442.0,0.00144985]
[1733252596170,0.209568,95434.0,95433.0,0.2008637]
[1733252596393,0.359568,95434.0,95433.0,0.20103961]
[1733252597473,0.360568,95434.0,95433.0,0.20103961]
[1733252597920,0.436968,95434.0,95433.0,0.20103961]
[1733252598362,0.56468059,95434.0,95433.0,0.20103961]
[1733252598810,0.56868059,95434.0,95433.0,0.20103961]
[1733252599885,0.440968,95434.0,95433.0,0.20103961]
[1733252601758,0.440968,95434.0,95433.0,0.19337539]
[1733252602853,0.214568,95434.0,95433.0,0.19337539]
[1733252603303,0.214568,95434.0,95433.0,0.39337539]
[1733252604383,0.364568,95434.0,95433.0,0.39337539]
[1733252607211,0.005,95434.0,95433.0,0.57848465]
[1733252607431,0.005,95434.0,95433.0,0.65758465]
[1733252607654,0.005,95434.0,95433.0,0.70708465]
[1733252608224,0.001,95434.0,95433.0,0.70708465]
[1733252608463,0.005,95434.0,95433.0,0.70708465]
[1733252608694,0.001,95434.0,95433.0,0.70708465]
[1733252609333,0.001,95434.0,95433.0,0.80413179]
[1733252609799,0.0017252,95443.0,95433.0,0.80413179]
[1733252610024,0.0017252,95443.0,95442.0,0.2]
[1733252610237,0.0017252,95443.0,95442.0,0.56542185]
[1733252610941,0.0017252,95443.0,95442.0,0.46070926]
[1733252611166,0.0017252,95443.0,95442.0,0.38510926]
[1733252611605,0.209564,95436.0,95433.0,0.18970994]
[1733252611819,0.209564,95436.0,95435.0,0.2]
[1733252612683,0.419129,95436.0,95435.0,0.2]
[1733252613106,0.420129,95436.0,95435.0,0.2]
[1733252613500,0.420129,95436.0,95435.0,0.203]
[1733252615971,0.001,95436.0,95435.0,0.38810926]
[1733252616195,0.001,95436.0,95435.0,0.51840926]
[1733252616400,0.001,95436.0,95435.0,0.83268785]
[1733252618392,0.001,95436.0,95435.0,0.85568785]
[1733252627420,0.0017252,95443.0,95442.0,0.209551]
[1733252627616,0.0017252,95443.0,95442.0,0.409551]
[1733252627846,0.0017252,95443.0,95442.0,0.72237285]
[1733252628932,0.0017252,95443.0,95442.0,0.72537285]
[1733252629151,0.0017252,95443.0,95442.0,0.72437285]
[1733252629363,0.0017252,95443.0,95442.0,0.72337285]
[1733252629622,0.0027252,95443.0,95442.0,0.72337285]
[1733252629851,0.0027252,95443.0,95442.0,0.72637285]
[1733252639123,0.0027252,95443.0,95442.0,0.80737285]
[1733252639329,0.0027252,95443.0,95442.0,1.07023285]
[1733252639543,0.0027252,95443.0,95442.0,1.27023285]
[1733252641622,0.0027252,95443.0,95442.0,1.00737285]
[1733252641896,0.0027252,95443.0,95442.0,0.10871259]
[1733252642130,0.0027252,95443.0,95442.0,0.29382185]
[1733252642371,0.0027252,95443.0,95442.0,0.49382185]
[1733252643572,0.0027252,95443.0,95442.0,0.51682185]
[1733252644087,0.0027252,95443.0,95442.0,0.38910926]
[1733252644836,0.0017252,95443.0,95442.0,0.38510926]
[1733252645322,0.0017252,95443.0,95442.0,0.38810926]
[1733252646579,0.0017252,95443.0,95442.0,0.003]
[1733252646580,0.2773252,95443.0,95442.0,0.003]
[1733252647336,0.2773252,95443.0,95442.0,0.001]
[1733252648020,0.15,95441.0,95438.0,0.2]
[1733252648768,0.15,95439.0,95438.0,0.2]
[1733252650496,0.15,95439.0,95438.0,0.201]
[1733252651234,0.151,95439.0,95438.0,0.201]
[1733252654632,0.17774193,95439.0,95438.0,0.201]
[1733252655686,0.001,95439.0,95438.0,0.38610926]
[1733252656266,0.001,95439.0,95438.0,0.40910926]
[1733252656469,0.001,95439.0,95438.0,0.51382185]
[1733252661681,0.001,95439.0,95438.0,0.40910926]
[1733252663015,0.001,95439.0,95438.0,0.51382185]
[1733252667135,0.0027254,95439.0,95438.0,0.51382185]
[1733252667340,0.0017254,95439.0,95438.0,0.57668185]
[1733252667549,0.0017254,95439.0,95438.0,1.21382185]
[1733252667803,0.0027254,95439.0,95438.0,1.21482185]
[1733252668410,0.0027254,95439.0,95438.0,1.21382185]
[1733252668785,0.0027254,95439.0,95438.0,1.21782185]
[1733252669143,0.0027254,95439.0,95438.0,0.51782185]
[1733252670655,0.0027254,95439.0,95438.0,0.41310926]
[1733252671478,0.0027254,95439.0,95438.0,0.39010926]
[1733252672803,0.0027254,95439.0,95438.0,0.41310926]
[1733252680299,0.0027254,95439.0,95438.0,0.72738185]
[1733252681848,0.0027254,95439.0,95438.0,0.5101437]
[1733252682950,0.0027254,95439.0,95438.0,1.2101437]
[1733252686902,0.0027254,95439.0,95438.0,0.5101437]
[1733252690939,0.0027254,95439.0,95438.0,0.5110064]
[1733252695709,0.0027254,95439.0,95438.0,0.5863064]
[1733252696218,0.0027254,95439.0,95438.0,0.6358064]
[1733252697301,0.0027254,95439.0,95438.0,0.87124473]
[1733252698384,0.0027254,95439.0,95438.0,0.87131865]
[1733252698584,0.0027254,95439.0,95438.0,0.87134078]
[1733252698840,0.0027254,95439.0,95438.0,0.6358064]
[1733252699052,0.0027254,95439.0,95438.0,0.8358064]
[1733252699880,0.0027254,95439.0,95438.0,1.5358064]
[1733252701121,0.0027254,95439.0,95438.0,0.8358064]
[1733252702613,0.0027254,95439.0,95438.0,0.6358064]
[1733252702781,0.0027254,95439.0,95438.0,0.8358064]
[1733252703895,0.0027254,95439.0,95438.0,1.0986664]
[1733252704542,0.0017252,95443.0,95442.0,0.91599111]
[1733252704757,0.0017252,95443.0,95442.0,1.0437037]
[1733252705619,0.0017252,95443.0,95442.0,1.32628985]
[1733252706253,0.0017252,95443.0,95442.0,2.02628985]
[1733252706473,0.0027252,95443.0,95442.0,1.7497037]
[1733252707602,0.0037252,95443.0,95442.0,1.7567037]
[1733252708061,0.0037252,95443.0,95442.0,1.7843494]
[1733252708734,0.0027252,95443.0,95442.0,1.0783494]
[1733252709117,0.0037252,95443.0,95442.0,1.0843494]
[1733252710245,0.0037252,95443.0,95442.0,0.8843494]
[1733252710460,0.0037252,95443.0,95442.0,1.0843494]
[1733252712719,0.0037252,95443.0,95442.0,1.7843494]
[1733252714309,0.0037252,95443.0,95442.0,1.5843494]
[1733252714519,0.0037252,95443.0,95442.0,1.1951437]
[1733252714734,0.0792252,95443.0,95442.0,1.1951437]
[1733252715372,0.0792252,95443.0,95442.0,1.00282185]
[1733252715575,0.0792252,95443.0,95442.0,0.4951437]
[1733252715774,0.0782252,95443.0,95442.0,0.4891437]
[1733252715995,0.0782252,95443.0,95442.0,0.5141437]
[1733252716115,0.0772252,95443.0,95442.0,0.5071437]
[1733252716508,0.0772252,95443.0,95442.0,0.5101437]
[1733252723057,0.1235252,95443.0,95442.0,0.40543111]
[1733252723274,0.1235252,95443.0,95442.0,0.005]
[1733252723937,0.1235252,95443.0,95439.0,0.18510926]
[1733252723938,0.0795,95440.0,95438.0,0.18597196]
[1733252724809,0.289055,95440.0,95438.0,0.18597196]
[1733252725019,0.15,95439.0,95438.0,0.18597196]
[1733252725654,0.15,95439.0,95438.0,0.20897196]
[1733252726073,0.0027252,95443.0,95442.0,0.18510926]
[1733252726290,0.0027252,95443.0,95442.0,0.40043111]
[1733252726719,0.0027252,95443.0,95442.0,0.5051437]
[1733252727148,0.0017252,95443.0,95442.0,0.5051437]
[1733252727354,0.0017252,95443.0,95442.0,0.53204545]
[1733252727775,0.0017252,95443.0,95442.0,0.53304545]
[1733252728011,0.0017252,95443.0,95442.0,0.5061437]
[1733252728204,0.2112742,95443.0,95442.0,0.40143111]
[1733252728433,0.2912742,95443.0,95442.0,0.40143111]
[1733252728854,0.0817252,95443.0,95442.0,0.40043111]
[1733252729068,0.0817252,95443.0,95442.0,0.40443111]
[1733252729723,0.0817252,95443.0,95442.0,0.40543111]
[1733252729942,0.0817252,95443.0,95442.0,0.40443111]
[1733252730373,0.0827252,95443.0,95442.0,0.41043111]
[1733252730845,0.0027252,95443.0,95442.0,0.41043111]
[1733252731759,0.0027252,95443.0,95442.0,0.5151437]
[1733252732642,0.0027252,95443.0,95442.0,0.41043111]
[1733252732866,0.00688791,95443.0,95442.0,0.41043111]
[1733252733097,0.0027252,95443.0,95442.0,0.41043111]
[1733252733334,0.00688791,95443.0,95442.0,0.41043111]
[1733252733561,0.0027252,95443.0,95442.0,0.41043111]
[1733252733769,0.00688791,95443.0,95442.0,0.41043111]
[1733252734005,0.0027252,95443.0,95442.0,0.41043111]
[1733252736058,0.00688755,95443.0,95442.0,0.41043111]
[1733252737774,0.00688755,95443.0,95442.0,0.38743111]
[1733252738006,0.08758755,95443.0,95442.0,0.38743111]
[1733252743171,0.08758755,95443.0,95442.0,0.20232185]
[1733252743359,0.08758755,95443.0,95442.0,0.01]
[1733252743839,0.08758755,95443.0,95442.0,0.38743111]
[1733252744493,0.08758755,95443.0,95442.0,0.01]
[1733252744678,0.08758755,95443.0,95442.0,0.19510926]
[1733252745603,0.08758755,95443.0,95442.0,0.38743111]
[1733252746098,0.00688755,95443.0,95442.0,0.4921437]
[1733252746547,0.0027252,95443.0,95442.0,0.4921437]
[1733252749385,0.09334301,95485.0,95460.0,0.37743111]
[1733252749606,0.0017278,95489.0,95460.0,0.9450037]
[1733252749831,0.0017278,95489.0,95460.0,1.0243037]
[1733252750271,0.0017278,95489.0,95460.0,1.23001747]
[1733252750516,0.0017278,95489.0,95460.0,1.1973037]
[1733252750783,0.0017278,95489.0,95480.0,0.66619811]
[1733252751019,0.0017278,95489.0,95480.0,0.8789107]
[1733252751263,0.0017278,95489.0,95480.0,0.9417707]
[1733252751504,0.0017278,95489.0,95480.0,1.0789107]
[1733252751984,0.0017278,95489.0,95480.0,1.2789107]
[1733252752217,0.00231355,95481.0,95480.0,1.4289107]
[1733252752686,0.00331355,95481.0,95480.0,1.47074852]
[1733252752921,0.00331355,95481.0,95480.0,1.4289107]
[1733252753391,0.00531355,95481.0,95480.0,1.4469107]
[1733252753676,0.00331355,95481.0,95480.0,1.4379107]
[1733252753915,0.00231355,95481.0,95480.0,1.45595455]
[1733252754171,0.00231355,95481.0,95480.0,0.56318755]
[1733252754405,0.00331355,95481.0,95480.0,0.29882185]
[1733252754655,0.00331355,95481.0,95480.0,0.4911437]
[1733252754918,0.00331355,95481.0,95480.0,0.8664388]
[1733252755165,0.00331355,95481.0,95480.0,0.63187955]
[1733252755398,0.00431355,95481.0,95480.0,0.5001437]
[1733252755652,0.00331355,95481.0,95480.0,0.4911437]
[1733252755923,0.00331355,95481.0,95480.0,0.6901437]
[1733252756179,0.00431355,95481.0,95480.0,0.6991437]
[1733252756415,0.00331355,95481.0,95480.0,0.6821437]
[1733252756638,0.00331355,95481.0,95480.0,0.6911437]
[1733252756880,0.00331355,95481.0,95480.0,0.8911437]
[1733252757099,0.00231355,95481.0,95480.0,0.8821437]
[1733252757364,0.00331355,95481.0,95480.0,1.03169016]
[1733252757609,0.00331355,95481.0,95480.0,1.32639016]
[1733252757848,0.00331355,95481.0,95480.0,1.1858437]
[1733252758564,0.0017278,95489.0,95488.0,0.77743111]
[1733252758838,0.0017278,95489.0,95488.0,1.3495937]
[1733252759522,0.0017278,95489.0,95488.0,1.48995476]
[1733252759741,0.0017278,95489.0,95488.0,1.49795476]
[1733252759994,0.0027278,95489.0,95488.0,1.49795476]
[1733252760241,0.0037278,95489.0,95488.0,1.3665937]
[1733252760459,0.0037278,95489.0,95488.0,1.50695476]
[1733252760718,0.0037278,95489.0,95488.0,1.50694145]
[1733252760966,0.0037278,95489.0,95488.0,1.3665937]
[1733252761213,0.0037278,95489.0,95488.0,1.39333737]
[1733252761895,0.0037278,95489.0,95488.0,2.03933737]
[1733252763515,0.0037278,95489.0,95488.0,1.98533737]
[1733252763735,0.0037278,95489.0,95488.0,2.00833737]
[1733252765136,0.0017274,95492.0,95488.0,2.00833737]
[1733252765137,0.0017274,95492.0,95491.0,0.92743111]
[1733252765363,0.082,95528.0,95527.0,0.37743111]
[1733252765581,0.082,95528.0,95527.0,0.4821437]
[1733252765811,0.0017302,95530.0,95529.0,0.19232185]
[1733252766026,0.0017302,95530.0,95529.0,0.29703444]
[1733252766710,0.00187149,95530.0,95529.0,0.4821437]
[1733252767571,0.00187149,95530.0,95529.0,0.4831437]
[1733252769175,0.00187149,95530.0,95529.0,0.4841437]
[1733252779676,0.00187149,95530.0,95529.0,1.1841437]
[1733252783379,0.00187149,95530.0,95529.0,1.3841437]
[1733252783599,0.00187149,95530.0,95529.0,1.4470037]
[1733252784521,0.00187149,95530.0,95529.0,1.4450037]
[1733252784736,0.00187149,95530.0,95529.0,1.4460037]
[1733252784943,0.00187149,95530.0,95529.0,1.4470037]
[1733252785154,0.00187149,95530.0,95529.0,1.4460037]
[1733252785365,0.00187149,95530.0,95529.0,1.4450037]
[1733252785582,0.00187149,95530.0,95529.0,1.4540037]
[1733252786005,0.00187149,95530.0,95529.0,1.4610037]
[1733252787568,0.00187149,95530.0,95529.0,1.1981437]
[1733252790005,0.00187149,95530.0,95529.0,1.3981437]
[1733252790221,0.00187149,95530.0,95529.0,1.1981437]
[1733252790447,0.00187149,95530.0,95529.0,1.33826775]
[1733252790661,0.00187149,95530.0,95529.0,1.1981437]
[1733252791320,0.08037149,95530.0,95529.0,1.1981437]
[1733252791546,0.08037149,95530.0,95529.0,0.90110926]
[1733252791768,0.08037149,95530.0,95529.0,0.016]
[1733252791769,0.12597149,95530.0,95529.0,0.016]
[1733252792028,0.13377247,95530.0,95529.0,0.016]
[1733252792196,0.13377247,95530.0,95529.0,0.009]
[1733252792416,0.13377247,95530.0,95529.0,0.006]
[1733252792417,0.34313047,95530.0,95529.0,0.006]
[1733252792657,0.34313047,95530.0,95529.0,0.012]
[1733252792866,0.34313047,95530.0,95529.0,0.006]
[1733252793704,0.209382,95519.0,95518.0,0.37743111]
[1733252794060,0.21711389,95519.0,95518.0,0.18510926]
[1733252794261,0.21711389,95519.0,95518.0,0.37743111]
[1733252794494,0.21711389,95519.0,95518.0,0.18510926]
[1733252794897,0.21811389,95519.0,95518.0,0.37743111]
[1733252795453,0.22111389,95519.0,95518.0,0.37743111]
[1733252795901,0.01173189,95519.0,95518.0,0.37743111]
[1733252796334,0.004,95519.0,95518.0,0.37743111]
[1733252796765,0.01073189,95519.0,95518.0,0.37743111]
[1733252796979,0.003,95519.0,95518.0,0.37743111]
[1733252797191,0.00773189,95519.0,95518.0,0.37743111]
[1733252797417,0.418756,95521.0,95518.0,0.37743111]
[1733252797633,0.00873189,95519.0,95518.0,0.37743111]
[1733252797852,0.001,95519.0,95518.0,0.37743111]
[1733252798083,0.00873189,95519.0,95518.0,0.18510926]
[1733252798322,0.00873189,95519.0,95509.0,0.23421055]
[1733252798323,0.0498,95516.0,95506.0,0.14052633]
[1733252798542,0.0498,95516.0,95496.0,0.32563559]
[1733252798768,0.0498,95516.0,95480.0,0.209467]
[1733252798769,0.209439,95493.0,95492.0,0.14138843]
[1733252798999,0.284439,95493.0,95492.0,0.0008621]
[1733252799220,0.29216694,95493.0,95492.0,0.0008621]
[1733252799930,0.44216694,95493.0,95492.0,0.0008621]
[1733252800369,0.44216694,95493.0,95492.0,0.00103801]
[1733252800791,0.44216694,95493.0,95492.0,0.00203801]
[1733252801020,0.49136694,95493.0,95492.0,0.00203801]
[1733252801238,0.49136694,95493.0,95492.0,0.00103801]
[1733252801457,0.49736694,95493.0,95492.0,0.00203801]
[1733252801870,0.49736694,95493.0,95492.0,0.00303801]
[1733252802497,0.49736694,95493.0,95492.0,0.00203801]
[1733252803903,0.50036694,95493.0,95492.0,0.00203801]
[1733252810153,0.29092794,95493.0,95492.0,0.00203801]
[1733252810363,0.01672794,95493.0,95492.0,0.00203801]
[1733252815854,0.01672794,95493.0,95492.0,0.00203801]
[1733252816273,0.01545214,95493.0,95492.0,0.00203801]
[1733252816687,0.01845214,95493.0,95492.0,0.00203801]
[1733252817305,0.00945214,95493.0,95492.0,0.00103801]
[1733252817519,0.01545214,95493.0,95492.0,0.00203801]
[1733252817721,0.01845214,95493.0,95492.0,0.00203801]
[1733252817934,0.01245214,95493.0,95492.0,0.00103801]
[1733252818221,0.01845214,95493.0,95492.0,0.00203801]
[1733252821913,0.01845214,95493.0,95492.0,0.18714727]
[1733252822125,0.0077242,95493.0,95492.0,0.18714727]
[1733252822549,0.0047242,95493.0,95492.0,0.18614727]
[1733252822965,0.0017242,95493.0,95492.0,0.18614727]
[1733252823395,0.0047242,95493.0,95492.0,0.18614727]
[1733252823815,0.01222176,95493.0,95492.0,0.18614727]
[1733252824028,0.01822176,95493.0,95492.0,0.18714727]
[1733252824243,0.01222176,95493.0,95492.0,0.18614727]
[1733252824449,0.01822176,95493.0,95492.0,0.18614727]
[1733252824901,0.22766076,95493.0,95492.0,0.18614727]
[1733252827550,0.22766076,95493.0,95492.0,0.00103801]
[1733252827765,0.35056076,95493.0,95492.0,0.00103801]
[1733252828423,0.60527335,95493.0,95492.0,0.00103801]
[1733252830588,0.63289448,95493.0,95492.0,0.00103801]
[1733252839355,0.63280066,95493.0,95492.0,0.00103801]
[1733252843921,0.65580066,95493.0,95492.0,0.00103801]
[1733252846949,0.65580066,95493.0,95492.0,1e-08]
[1733252847167,0.67836955,95493.0,95492.0,1e-08]
[1733252847388,0.53262989,95483.0,95482.0,2e-07]
[1733252847589,0.53262989,95483.0,95482.0,5.894e-05]
[1733252847590,0.667892,95483.0,95482.0,5.894e-05]
[1733252847813,0.67532106,95483.0,95482.0,5.894e-05]
[1733252848012,0.67532106,95483.0,95482.0,9.4e-07]
[1733252848276,0.209538,95448.0,95447.0,0.18510926]
[1733252848447,0.359538,95448.0,95447.0,0.00058615]
[1733252848653,0.36696513,95448.0,95447.0,0.00058615]
[1733252849797,0.36696513,95448.0,95447.0,0.00558615]
[1733252851212,0.36696513,95448.0,95447.0,0.00958615]
[1733252851445,0.36696513,95448.0,95447.0,0.00544825]
[1733252851681,0.36696513,95448.0,95447.0,0.00144825]
[1733252851908,0.36696513,95448.0,95447.0,0.00444825]
[1733252852168,0.36696513,95448.0,95447.0,0.00244825]
[1733252852392,0.36696513,95448.0,95447.0,0.00444825]
[1733252853048,0.36696513,95448.0,95447.0,0.18955751]
[1733252854971,0.36696513,95448.0,95447.0,0.00444825]
[1733252855652,0.39381875,95448.0,95447.0,0.00444825]
[1733252864358,0.49853134,95448.0,95447.0,0.00444825]
[1733252864773,0.58073134,95448.0,95447.0,0.00444825]
[1733252865187,0.60330023,95448.0,95447.0,2.5e-07]
[1733252865389,0.00767815,95437.0,95412.0,0.2]
[1733252865592,0.359568,95434.0,95412.0,0.2]
[1733252865826,0.359568,95434.0,95418.0,0.18510926]
[1733252866096,0.36680969,95434.0,95418.0,0.18510926]
[1733252867783,0.60682228,95434.0,95433.0,0.0018637]